Cogmind - Beta 16.1 @@@ ROGUE MODE // 2026.02.18 @ 15:50:48 Player: Megaknight51 Result: Destroyed by HZ-M0H(R) with Subdweller Laser Performance ------------- Evolutions (0) 0 Regions Visited (2) 400 Robots Destroyed (23) 115 Value Destroyed (569) 569 Prototype IDs (0) 0 Alien Tech Used (0) 0 Bonus (0) 0 TOTAL SCORE: 1084 Bonus ------- None Cogmind --------- Core Integrity 0/250 Matter 34/300 Energy 250/250 System Corruption 10% Temperature Cool (6) Movement Rolling (140) Ox4 Location -10/Subcaves Parts ------- > --- POWER (1) -------- Ion Engine > --- PROPULSION (2) --- Wheel > --- UTILITY (2) ------ High-capacity Storage Unit Seismic Detector > --- WEAPON (2) ------- Light Assault Rifle Grenade Launcher > --- INVENTORY (20) --- Light Ion Engine Subdweller Power Source Subdweller Power Source Wheel Structural Scanner Signal Interpreter Improved Terrain Scanner Seismic Detector Hardened Light Armor Plating Hardened Light Armor Plating Hardened Light Armor Plating Hardened Light Armor Plating Subdweller Machine Gun Mining Claw Peak State ------------ > --- POWER ------------ Ion Engine > --- PROPULSION ------- Wheel Compact Wheel > --- UTILITY ---------- High-capacity Storage Unit Improved Terrain Scanner > --- WEAPON ----------- Light Assault Rifle Grenade Launcher > --- INVENTORY -------- Light Ion Engine Subdweller Power Source Wheel Structural Scanner Signal Interpreter Seismic Detector Seismic Detector Hardened Light Armor Plating Hardened Light Armor Plating Hardened Light Armor Plating Hardened Light Armor Plating Grenade Launcher Mining Claw [Rating: 10] Favorites ----------- Power Ion Engine Engine Ion Engine Propulsion Wheel Wheel Wheel Utility High-capacity Storage Unit Device Structural Scanner Storage High-capacity Storage Unit Weapon Light Assault Rifle Energy Gun EM Pulse Gun Ballistic Gun Light Assault Rifle Launcher Grenade Launcher Special Weapon Mining Laser Slashing Weapon Mining Claw Build | -11 -10 -10 ------- Run | Yrd Mat Sub Slots Evolved . | . . . Power . | . . . Propulsion . | . . . Utility . | . . . Weapon . | . . . Parts Attached 19 | 8 9 2 Power 2 | 2 . . Engine 2 | 2 . . Core . | . . . Reactor . | . . . Propulsion 3 | 2 1 . Treads . | . . . Leg . | . . . Wheel 3 | 2 1 . Hover . | . . . Flight . | . . . Utility 7 | 2 4 1 Device 5 | 1 3 1 Storage 2 | 1 1 . Processor . | . . . Hackware . | . . . Protection . | . . . Artifact . | . . . Weapon 7 | 2 4 1 Energy Gun 2 | 1 1 . Energy Cannon . | . . . Ballistic Gun 1 | 1 . . Ballistic Cannon . | . . . Launcher 2 | . 1 1 Special Weapon 1 | . 1 . Impact Weapon . | . . . Slashing Weapon 1 | . 1 . Piercing Weapon . | . . . Special Melee Weapon . | . . . Unidentified Prototypes . | . . . Parts Lost 7 | . 4 3 Power . | . . . Propulsion 2 | . 1 1 Utility 1 | . 1 . Weapon 4 | . 2 2 Highest Loss Streak 3 | . 3 1 To Critical Strikes . | . . . Average Backups 11 | 2 12 13 Power 1 | . 1 1 Propulsion 1 | . 2 1 Utility 6 | . 6 8 Weapon 2 | . 3 2 Tool/Special . | . . . Unused Backups 10 | . 3 7 Power 2 | . 1 1 Propulsion 2 | . 1 1 Utility 5 | . . 5 Weapon 1 | . 1 . Tool/Special . | . . . Average Slot Usage (%) 93 | . 93 92 Engine 14 | . 14 14 Wheel 26 | . 25 26 Device 11 | . 12 9 Storage 14 | . 14 14 Energy Gun 8 | . 11 . Ballistic Gun 8 | . 6 12 Launcher 3 | . . 11 Special Weapon 1 | . 1 1 Slashing Weapon 4 | . 5 1 Peak Build Rating 10 | 7 9 10 Average Rating 8 | 5 8 8 On Entrance 4 | . 7 6 Avg Prop Armor Cover (%) . | . . . Naked Turns . | . . . Heaviest Build 51 | 14 51 50 Greatest Support 26 | 26 26 26 Greatest Overweight (x) 4 | . 4 4 Average Overweight (x) 1 | . 1 1 Largest Inventory Capacity 20 | 8 20 20 Average Capacity 17 | 7 17 20 Most Carried 16 | 7 16 15 Average Carried 11 | 2 12 13 Final Capacity 20 | 8 20 20 Final Carried 16 | 7 16 14 Class Distribution -------------------- 100% | Mutant Dominant Class ---------------- Mutant | -10/Materials Mutant | -10/Subcaves Resources | -11 -10 -10 ----------- Run | Yrd Mat Sub Matter Collected 482 | 274 123 85 Remotely . | . . . Salvage Created 713 | 171 379 163 Parts 58 | 16 32 10 Haulers Intercepted . | . . . Recyclers Shooed . | . . . Parts Field Recycled . | . . . Retrieved Matter . | . . . Parts Self-Destructed . | . . . Prevented . | . . . Parts Restored . | . . . Kills | -11 -10 -10 ------- Run | Yrd Mat Sub Combat Hostiles Destroyed 15 | . 9 6 Guns 10 | . 9 1 AOE 5 | . . 5 Classes Destroyed 7 | 2 4 1 Builder 1 | . 1 . Tunneler 5 | 4 1 . Recycler 1 | 1 . . Watcher 1 | . 1 . Swarmer 3 | . 3 . Grunt 6 | . 6 . Subdweller 6 | . . 6 Best Kill Streak 5 | 5 3 3 Combat Bots Only 3 | . 3 3 Max Kills in Single Turn 2 | 1 2 2 Gunslinging 1 | . 1 . Exploded 2 | . . 2 Melee . | . . . Uniques/NPCs Destroyed . | . . . Combat | -11 -10 -10 -------- Run | Yrd Mat Sub Hostile Shots Fired 40 | . 26 14 Missed 11 | . 9 2 Hits 29 | . 17 12 Projectile 29 | . 17 12 Damage Taken 756 | . 490 266 Core 257 | . 165 92 Absorbed by Shields . | . . . Core Remaining (%) 100 | 100 . . Volleys Fired 63 | 18 31 14 Largest 2 | 2 2 2 Hottest 100 | 60 100 50 Shots Fired 116 | 36 56 24 Gun 93 | 36 46 11 Cannon . | . . . Launcher 17 | . 4 13 Special 6 | . 6 . Kinetic 50 | 18 21 11 Thermal 17 | . 17 . Explosive 17 | . 4 13 Electromagnetic 32 | 18 14 . Robot Hit Streak 11 | 4 5 11 Robot Miss Streak 5 | 5 3 2 Penetration Max . | . . . Secondary Targets 2 | . 2 . Max Gunslinging Chain 1 | . 1 . Shots Hit Robots 58 | 15 25 18 Core Hits 42 | 7 18 17 Critical Kills . | . . . Critical Parts Destroyed . | . . . Critical Strikes . | . . . Melee Attacks 40 | . 36 4 Impact . | . . . Slashing 40 | . 36 4 Piercing . | . . . Sneak Attacks . | . . . Combat Hostiles . | . . . Follow-up Attacks . | . . . Damage Inflicted 1255 | 189 401 665 Guns 548 | 189 286 73 Cannons . | . . . Explosions 707 | . 115 592 Melee . | . . . Ramming . | . . . Kinetic 191 | 48 70 73 Thermal 68 | . 68 . Explosive 707 | . 115 592 Electromagnetic 289 | 141 148 . Impact . | . . . Slashing . | . . . Piercing . | . . . Highest Corruption 10 | . 10 10 Average Corruption 9 | . 9 10 Corruption Purged . | . . . Corruption Blocked . | . . . Effects 24 | . 6 18 Message Errors 8 | . 3 5 Matter Fused 6 | . 1 5 Heat Flow Errors 3 | . . 3 Energy Discharges 3 | . 1 2 Data Loss (minor) 2 | . 1 1 Data Loss (major) 1 | . . 1 Alerts 1 | . . 1 Overload Shots . | . . . Overflow Damage . | . . . Projectiles . | . . . Explosions . | . . . Melee . | . . . Knockbacks . | . . . Impact . | . . . Kinetic . | . . . Secondary . | . . . Self-Inflicted Damage 31 | . 31 . Shots 2 | . 2 . Rammed . | . . . Targets Rammed . | . . . Kicked . | . . . Crushed . | . . . Highest Temperature 239 | 80 160 239 Average Temperature 42 | 35 39 97 Received Heat Transfer 126 | . 75 51 Siege Activations . | . . . Martial Activations . | . . . Shielding Activations . | . . . Robots Disrupted . | . . . Combat Hostiles . | . . . Robots Corrupted . | . . . Combat Hostiles . | . . . Parts Fried . | . . . Impact Corruptions . | . . . Robots Melted . | . . . Combat Hostiles . | . . . Parts Melted . | . . . Heat Transferred 185 | . 185 . Parts Sabotaged . | . . . Parts Stolen . | . . . Parts Stripped . | . . . Power Chain Reactions . | . . . Alert | -11 -10 -10 ------- Run | Yrd Mat Sub Maximum Alert Level . | . . . Low Security (%) 100 | 100 100 . Level 1 . | . . . Level 2 . | . . . Level 3 . | . . . Level 4 . | . . . Level 5 . | . . . High Security . | . . . Max Security . | . . . Peak Influence 85 | 15 85 . Initial . | . . . Average 18 | 3 19 . Influence Increases 388 | 25 363 . Destroy 0b10 Robot/C 180 | . 180 . Destroy 0b10 Robot/NC 40 | 25 15 . Destroy Leader 42 | . 42 . Successful Hack 15 | . 15 . Select Force Hacks 60 | . 60 . Disable Machine 30 | . 30 . Destroy Structure 21 | . 21 . Influence Decreases 388 | 25 333 30 Entered New Map 15 | . . 15 Time Decay 343 | 25 303 15 Lost Part 30 | . 30 . Squads Dispatched 4 | . 4 . Investigation 3 | . 3 . Extermination . | . . . Reinforcement 1 | . 1 . Assault . | . . . Garrison . | . . . Intercept . | . . . Searches Triggered . | . . . Construction Impeded . | . . . Haulers Reinforced . | . . . Active Scanning Responses . | . . . Cargo Convoy Interrupts . | . . . Stealth | -11 -10 -10 --------- Run | Yrd Mat Sub Distress Signals 1 | . 1 . Communications Jammed . | . . . Distress Signals . | . . . Times Spotted 21 | . 14 7 Peak Tracking Total 3 | . 3 2 Tactical Retreats . | . . . Traps | -11 -10 -10 ------- Run | Yrd Mat Sub Traps Triggered 2 | . 2 . Indirectly . | . . . Trap Hack Attempts . | . . . Triggered . | . . . Disarmed . | . . . Reprogrammed . | . . . Reused . | . . . Traps Extracted . | . . . Installed . | . . . Triggered . | . . . Machines | -11 -10 -10 ---------- Run | Yrd Mat Sub Machines Disabled 2 | . 2 . Max in Single Turn 1 | . 1 . Machines Repaired . | . . . Machines Dismantled . | . . . Machines Sabotaged . | . . . Overloaded Fab Kills . | . . . Hacking | -11 -10 -10 --------- Run | Yrd Mat Sub Machines Accessed 6 | . 6 . Terminals 4 | . 4 . Fabricators . | . . . Repair Stations . | . . . Recycling Units 2 | . 2 . Scanalyzers . | . . . Garrison Access . | . . . Total Hacks 15 | . 15 . Successful 9 | . 9 . Failed 6 | . 6 . Catastrophic . | . . . Database Lockouts . | . . . Manual 11 | . 11 . Terminals 11 | . 11 . Fabricators . | . . . Repair Stations . | . . . Recycling Units 4 | . 4 . Scanalyzers . | . . . Garrison Access . | . . . Terminal Hacks 4 | . 4 . Robot Analysis 2 | . 2 . Hauler Manifests 1 | . 1 . Registered Components 1 | . 1 . Fabricator Hacks . | . . . Repair Station Hacks . | . . . Recycling Unit Hacks . | . . . Scanalyzer . | . . . Garrison Access Hacks . | . . . Unauthorized Hacks 5 | . 5 . Terminals 3 | . 3 . Botnet 3 | . 3 . Fabricators . | . . . Repair Stations . | . . . Recycling Units 2 | . 2 . Tunnel 2 | . 2 . Scanalyzers . | . . . Garrison Access . | . . . Data Cores Recovered . | . . . Used . | . . . Hacking Detections 5 | . 5 . Full Trace Events 1 | . 1 . Feedback Events . | . . . Feedback Blocked . | . . . Robot Schematics Acquired . | . . . Robots Built . | . . . Authchips . | . . . Time . | . . . Total Robot Build Rating . | . . . Part Schematics Acquired . | . . . Parts Built . | . . . Authchips . | . . . Time . | . . . Total Part Build Rating . | . . . Part Studies Acquired . | . . . Parts Repaired . | . . . Time . | . . . Parts Recycled . | . . . Recycled Matter . | . . . Retrieved Matter . | . . . Retrieved Components . | . . . Parts Scanalyzed . | . . . Part Schematics Acquired . | . . . Parts Damaged . | . . . Bothacking | -11 -10 -10 ------------ Run | Yrd Mat Sub Used RIF Installer . | . . . Robots Hacked . | . . . Non-combat . | . . . Combat . | . . . Robot Hacks Applied . | . . . Relay Couplers Released . | . . . Fabnet Peak Effective % . | . . . Robots Rewired . | . . . Allies Hacked . | . . . Hacks Repelled . | . . . Allies | -11 -10 -10 -------- Run | Yrd Mat Sub Total Allies . | . . . Largest Group . | . . . Highest-Rated Group . | . . . Highest-Rated Ally . | . . . Total Orders . | . . . Ally Attacks . | . . . Total Damage . | . . . Kills . | . . . Allies Corrupted . | . . . Allies Melted . | . . . Intel | -11 -10 -10 ------- Run | Yrd Mat Sub Active Infowar (turns) 1479 | 42 1126 311 Sensors 222 | . 222 . Terrain 232 | . . 232 Structural 528 | . 528 . Seismic 497 | 42 376 79 Robot Analysis Total 2 | . 2 . Derelict Logs Recovered . | . . . Drone Launches . | . . . Drone Recoveries . | . . . Exploration | -11 -10 -10 ------------- Run | Yrd Mat Sub Turns Passed 1881 | 147 1301 433 Spaces Moved 996 | 90 780 126 Core 3 | 3 . . Treads . | . . . Legs . | . . . Wheels 993 | 87 780 126 Hover . | . . . Flight . | . . . Fastest Speed 50 | 50 80 105 Average Speed 104 | 88 105 111 Slowest Speed 140 | 90 140 140 Overloaded Moves . | . . . Propulsion Burnouts . | . . . Robots Hopped . | . . . Potential Cave-ins 7 | . 7 . Cave-ins Triggered 4 | . 4 . Exploration Rate (%) 30 | 4 80 6 Regions Visited 2 Branch Regions 1 Pre-discovered Areas 2 | . 2 . Known Exits Taken . | . . . Unknown Exits Taken 2 | 1 1 . Scrap Searched . | . . . Spaces Dug 19 | . 19 . Terrain Destroyed 83 | . 27 56 Melee 13 | . 13 . Projectile 6 | . 6 . AOE 64 | . 8 56 Terrain Rammed . | . . . Walls Destroyed . | . . . Machines Disabled . | . . . Actions | -11 -10 -10 --------- Run | Yrd Mat Sub Total 1630 | 121 1121 388 Wait 477 | . 244 233 Move 994 | 89 779 126 Hop . | . . . Pick Up 19 | 6 10 3 Fast Attach 9 | 7 2 . Attach 5 | . . 5 Detach 1 | . 1 . Swap 18 | 1 14 3 Drop 4 | . 4 . Fire 63 | 18 31 14 Melee 40 | . 36 4 Ram . | . . . Kick . | . . . Crush . | . . . Escape Stasis . | . . . Rewire . | . . . Trap . | . . . Miscellaneous . | . . . Route ------- -11/Scrapyard -10/Materials (discovered 4 exits: [*Mat x3] / [*Sub]) -10/Subcaves History --------- Turn | Location | Event 6 | -11/Scrapyard | Discovered new exit (range 16) 148 | -11/Scrapyard | Entered Materials 300 | -10/Materials | Build established: Mutant 368 | -10/Materials | Discovered new exit (range 16) 529 | -10/Materials | Discovered new exit (range 6) 772 | -10/Materials | Discovered new exit (range 6) 1031 | -10/Materials | Discovered new exit (range 7) 1250 | -10/Materials | Crushed by falling debris 1250 | -10/Materials | Core integrity fell below 50% 1265 | -10/Materials | Crushed by falling debris 1270 | -10/Materials | Crushed by falling debris 1275 | -10/Materials | Crushed by falling debris 1275 | -10/Materials | System corruption reached 10% 1306 | -10/Materials | Lost 3 parts (1n1u1w) 1449 | -10/Materials | Entered Subcaves 1450 | -10/Subcaves | Approached by a straggling Scientist 1539 | -10/Subcaves | Shifting Twisted Machinery released Sub. Power Source 1877 | -10/Subcaves | Core integrity fell below 20% 1882 | -10/Subcaves | Destroyed by HZ-M0H(R) with Subdweller Laser Last Messages --------------- 01831_ Com. Wheel destroyed. 01832_ QK-J94(R): "ARGHSUB!" 01836_ 4D-TE7(R) destroyed. 01836_ QK-J94(R) destroyed. 01841_ The unstable cave ceiling collapses. 01848_ Subatomizers dissect the Sub. Power Source. 01849_ Acquired Sub. Power Source. 01850_ Acquired 31 matter. 01851_ System corrupted: IFF burst signal emitted. 01852_ The unstable cave ceiling collapses. 01852_ Acquired Sub. Machine Gun. 01853_ The unstable cave ceiling collapses. 82-FH4(c): "I think it's somewhere south of here" 01859_ Acquired 6 matter. 01860_ The unstable cave ceiling collapses. 01866_ VOXGRMJOF:>FUQ|5S|SLMF%E 01876_ The unstable cave ceiling collapses. 01876_ QF-CGS(R) destroyed. 01876_ Grenade Launcher destroyed. 01880_ QF-YFM(R) destroyed. Map ----- +----------------------------------------------------+ | ?????????????????????????????????????????????????? | | ?????????????????????????????????????????????????? | | ?????????????????????????????????????????????????? | | ?????????????????????????????????????????????????? | | ?????????????????????????????????????????????????? | | ?????????????????????????????????????????????????? | | ?????????????????????????????????????????????????? | | ???????????###??####?????????????????????????????? | | ???????##### ### ##?????##?????????????????????? | | ???????# #????" "?????????????????????? | | ???????# #???# ??????????????????????? | | ????????# #???? ???????????????????????? | | ????????# ###??? ????????????????????????? | | ???????## ##???? ?????????????????????????? | | ??????## ##???? ##????????????????????????? | | ??????# & ###? #????????????????????????? | | ??????## & ## ## ##????????????????????????? | | ???????## #??????????#?????????????? | | ????????## ####?????# ##;???????????? | | ?????????# " " "" ### #???# ""#?????????? | | ?????????# """"# ##### #### &R """?????????? | | ????????""""""### #### =%! """??????????? | | ???????""### #### ## "????????????? | | ???????"###"""# # ## "##"????????????? | | ??????# ##""" #### # [ #??????????????? | | ???????"""" ##### @ &%= #??????????????? | | ??????"""" ### # # * & #??????????????? | | ?????? "??#####"" & # # #??????????????? | | ???????""???#"## " O ##?????????????????? | | ?????########" " #& ###??????????????????? | | ?????? " " " c # #????????????????????? | | ????#?# " """"" #####????????????????????? | | ??????? "# ## #????????????????????????? | | ?#? ??? "##" ## ### ???????????????????????? | | ???? ??#"#?# ## #??????????????????????????? | | ???????# ### ##??????????????????????????? | | ???#??## ## ##???????????????????????????? | | ?????## ##? ??????#???????????????????? | | #?#??# #####????????#????????????????????? | | ?#?### ### #???????##????#???????????????????? | | ?#?# ###?# ##??#??????#?? ????#??????????????? | | ???# ##???##" ##?##??????? ????????????????????? | | ???#####???### ##???" ?? ??????????????????????? | | ???#???#?#??####??#"??? ????????????????????????? | | ?#??#????"????????????????#??????????????????????? | | ???#?#????????????"???###?#??????????????????????? | | ?#????????????????? ?#??????#???????????????????? | | ?#?#?????"? ??? ? ???#??? ??????????????????????? | | ??????????"??????????????????????????????????????? | | ?????????? "? ?? ??? ????? ????????????????????? | +----------------------------------------------------+ Best States ------------- Heat Dissipation 25 Energy Generation 10 Energy Capacity 250 Matter Stores 300 Matter Capacity 300 Sight Range 16 Robot Scan Range 14 Terrain Scan Range 16 Terrain Scan Density 10 Evasion (%) 44 Item Schematics ----------------- None Robot Schematics ------------------ None Fabricated ------------ Nothing Repaired ---------- Nothing Studied --------- None Alien Tech Used ----------------- None Achievements -------------- None Challenges ------------ None Game ------ Seed GunSigixPenetrator Manual? 0 Play Time 00:13:07 Cumulative 87.9 hours Start 2026.02.18 @ 15:39:22 End 2026.02.18 @ 15:50:48 Sessions 1 Manual Loads 0 Difficulty Rogue Special Mode None Game No. 182 Rogue 182 Adventurer 0 Explorer 0 Win Type - Total 1 Types 1/0/0/0/0/0/0/0/0/0 Lore% 50 Gallery% 38 Achievement% 38 Wizard Run 0 Options --------- Layout 0 ASCII 0 Keyboard 1 Movement Arrows Keybinds 0 Fullscreen 1 Font 18/Smallcaps Map View 38x25 Zoom Use 41% Tactical HUD 1 Map Filters NONE Filters NONE Steam 1 RUN: 73fc0f5c-6f6b-4fdb-ac0a-d21e8590ec38